{"text_format":"3","workbook":"xlsx","n_sheets":1,"sheets":["sheet1"],"not_rendered":{"defined_names":2},"read":"whole","date_system":"1900"}

{"sheet":"sheet1","index":0,"n_rows":414,"n_cols":23,"rows_kept":414,"merged":[[0,0,0,22],[1,0,1,22],[3,19,23,19],[3,22,23,22],[24,19,70,19],[24,22,31,22],[32,22,70,22],[71,19,143,19],[71,22,79,22],[80,22,143,22],[144,19,236,19],[144,22,150,22],[151,22,236,22],[237,19,273,19],[237,22,273,22],[274,19,302,19],[274,22,278,22],[279,22,302,22],[303,19,321,19],[303,22,304,22],[305,22,321,22],[322,19,413,19],[322,22,334,22],[335,22,413,22]]}
["附件1"]
["临夏州2022年“特岗计划”学科岗位需求计划表"]
["设岗学校","学校类型","合计","语文","数学","英语","物理","化学","历史","地理","生物","政治","音乐","美术","体育","信息技术","心理学","科学","小学全科","生源（户籍）要求","签约农硕数量","农硕任教科目","学历要求"]
["临夏市枹罕中学","初级中学",7,1,1,1,1,1,null,1,{"$nulls":5},1,{"$nulls":3},"现户籍地或高考时家庭户籍所在地为临夏州各县市",2,"1名英语\n1名地理","普通高校本科及以上毕业生"]
["临夏市第三中学","初级中学",3,null,null,1,{"$nulls":3},1,1]
["临夏市河州中学附属中学","完全中学（初中部）",20,5,4,3,1,null,1,1,1,1,null,1,1,1]
["临夏市实验小学分校","乡镇小学",20,3,6,2,{"$nulls":5},2,2,2,2,1]
["临夏市枹罕镇王坪小学","乡镇小学",4,1,1,1,{"$nulls":6},1]
["临夏市枹罕镇牟家小学","乡镇小学",3,1,1,1]
["临夏市枹罕镇后杨小学","乡镇小学",3,1,1,1]
["临夏市枹罕镇江牌小学","乡镇小学",3,1,1,1]
["临夏市枹罕镇青寺小学","乡镇小学",3,1,1,1]
["临夏市枹罕镇街子小学","乡镇小学",2,1,1]
["临夏市枹罕镇石头洼小学","乡镇小学",3,1,1,1]
["临夏市枹罕镇罗家堡小学","乡镇小学",2,1,null,1]
["临夏市南龙镇高邓家小学","乡镇小学",2,1,1]
["临夏市南龙镇单子庄小学","乡镇小学",2,1,1]
["临夏市南龙镇杨妥家小学","乡镇小学",3,1,1,1]
["临夏市南龙镇罗家湾小学","乡镇小学",2,null,1,{"$nulls":7},1]
["临夏市折桥镇九眼泉小学","乡镇小学",3,1,null,1,{"$nulls":6},1]
["临夏市折桥镇折桥小学","乡镇小学",2,{"$nulls":9},1,null,1]
["临夏市折桥镇苟家小学","乡镇小学",2,{"$nulls":9},1,null,1]
["临夏市城郊镇肖家小学","乡镇小学",2,{"$nulls":9},1,null,1]
["临夏市城郊镇永红小学","乡镇小学",5,1,1,{"$nulls":7},1,1,1]
["临夏县中学","高级中学",1,{"$nulls":3},1,{"$nulls":12},"现户籍地或高考时家庭户籍所在地为临夏州各县市",1,"物理","普通高校本科及以上毕业生"]
["临夏县三角初级中学","初级中学",3,1,null,1,{"$nulls":8},1]
["临夏县马集初级中学","初级中学",5,1,null,1,null,1,1,1,{"$nulls":10},1,"历史"]
["临夏县井沟初级中学","初级中学",3,null,1,null,null,1,null,null,1]
["临夏县韩集初级中学分校","初级中学",4,1,null,1,null,null,1,null,1]
["临夏县红台初级中学","初级中学",3,{"$nulls":3},1,{"$nulls":5},1,null,1]
["临夏县漫路初级中学","初级中学",3,null,1,{"$nulls":4},1,1]
["临夏县南塬乡江家寨九年一贯制学校","九年一贯制（初中部）",2,null,null,1,null,1]
["临夏县南塬乡江家寨九年一贯制学校","九年一贯制（小学部）",2,1,{"$nulls":9},1,{"$nulls":8},"普通高校本科及以上或普通高校师范专业专科毕业生"]
["临夏县漫路乡高家沟小学","教学点",1,null,1]
["临夏县漫路乡小岭小学","村级小学",1,{"$nulls":11},1]
["临夏县营滩乡标山分校","村级小学",1,1]
["临夏县营滩乡龙卧小学","村级小学",1,{"$nulls":15},1]
["临夏县井沟东乡族乡大路中心小学","乡镇小学",1,{"$nulls":9},1]
["临夏县井沟东乡族乡大塬顶小学","村级小学",1,{"$nulls":15},1]
["临夏县井沟东乡族乡谢家小学","教学点",1,1]
["临夏县麻尼寺沟乡关滩小学","村级小学",1,{"$nulls":15},1]
["临夏县麻尼寺沟乡郭东山小学","村级小学",1,null,1]
["临夏县麻尼寺沟乡韩家门小学","村级小学",1,null,null,1]
["临夏县麻尼寺沟乡三台小学","村级小学",1,null,1]
["临夏县麻尼寺沟乡马角岭小学","村级小学",1,null,1]
["临夏县掌子沟乡关巴小学","村级小学",1,1]
["临夏县掌子沟乡中光中心小学","乡镇小学",1,null,null,1]
["临夏县马集镇阳台小学","村级小学",1,null,null,1]
["临夏县马集镇寨子小学","村级小学",1,null,null,1]
["临夏县马集镇柴东岭小学","村级小学",1,{"$nulls":15},1]
["临夏县马集镇长坡沿小学","村级小学",1,null,1]
["临夏县榆林乡窑湾小学","教学点",1,null,1]
["临夏县榆林乡全家岭小学","村级小学",1,null,1]
["临夏县韩集镇姚川小学","村级小学",5,1,null,1,{"$nulls":6},1,1,1]
["临夏县漠泥沟乡漠泥沟中心小学","乡镇小学",1,null,1]
["临夏县漠泥沟乡台塔小学","村级小学",1,1]
["临夏县漠泥沟乡姬家小学","村级小学",1,null,1]
["临夏县漠泥沟乡柏林沟教学点","教学点",1,1]
["临夏县漠泥沟乡买都小学","教学点",1,null,1]
["临夏县尹集镇大草滩小学","教学点",1,null,1]
["临夏县尹集镇新发小学","村级小学",1,null,null,1]
["临夏县尹集镇卡家滩小学","村级小学",1,null,1]
["临夏县尹集镇槐丰小学","村级小学",1,null,1]
["临夏县尹集镇新兴小学","村级小学",1,null,1]
["临夏县尹集镇老虎山小学","村级小学",1,null,null,1]
["临夏县红台乡姚何小学","村级小学",1,{"$nulls":15},1]
["临夏县红台乡三大湾小学","村级小学",1,{"$nulls":9},1]
["临夏县南塬乡谢家坡小学","村级小学",1,{"$nulls":15},1]
["临夏县新集镇苗家小学","村级小学",1,null,null,1]
["临夏县新集镇苏山小学","村级小学",1,{"$nulls":15},1]
["临夏县新集镇赵山小学","村级小学",1,null,1]
["东乡县石化中学","初级中学",23,1,1,2,2,2,2,2,1,2,2,2,2,1,1,null,null,"现户籍地或高考时家庭户籍所在地为临夏州各县市",1,"语文","普通高校本科及以上毕业生"]
["东乡县第三中学","完全中学（初中部）",5,null,null,1,1,1,{"$nulls":3},1,null,null,1]
["东乡县第四中学","九年一贯制（初中部）",5,null,1,null,null,1,null,null,1,{"$nulls":3},1,1]
["东乡县第五中学","九年一贯制（初中部）",8,1,null,1,1,1,1,null,1,null,1,1]
["东乡县第六中学","初级中学",8,1,1,1,1,1,null,1,{"$nulls":3},1,null,null,1]
["东乡县果园中学","九年一贯制（初中部）",8,null,1,1,1,1,null,1,null,null,1,1,null,1]
["东乡县龙泉学校","九年一贯制（初中部）",6,1,null,null,1,null,1,1,1,null,1]
["东乡县考勒学校","九年一贯制（初中部）",5,1,1,{"$nulls":3},1,null,null,1,null,null,1]
["东乡县唐汪镇三合学校","九年一贯制（初中部）",5,1,1,1,{"$nulls":5},1,{"$nulls":3},1]
["东乡县第五中学","九年一贯制（小学部）",3,1,1,{"$nulls":12},1,{"$nulls":4},"普通高校本科及以上或普通高校师范专业专科毕业生"]
["东乡县果园中学","九年一贯制（小学部）",4,1,1,{"$nulls":6},1,null,1]
["东乡县大塬学校","九年一贯制（小学部）",3,1,null,1,{"$nulls":9},1]
["东乡县唐汪镇三合学校","九年一贯制（小学部）",2,null,null,1,{"$nulls":7},1]
["东乡县考勒乡三塬学校","九年一贯制（小学部）",2,null,1,1]
["东乡县春台乡春台小学","乡镇小学",2,null,null,1,{"$nulls":6},1]
["东乡县春台乡大方小学","村级小学",1,1]
["东乡县那勒寺小学","乡镇小学",4,1,1,1,{"$nulls":7},1]
["东乡县那勒寺郭泥沟小学","村级小学",2,null,1,1]
["东乡县那勒寺阳洼小学","村级小学",2,1,1]
["东乡县那勒寺瓦房小学","村级小学",2,null,1,1]
["东乡县那勒寺巴哈松小学","村级小学",2,null,null,1,{"$nulls":6},1]
["东乡县那勒寺阿环小学","村级小学",1,null,null,1]
["东乡县那勒寺黑庄小学","村级小学",2,null,1,1]
["东乡县那勒寺东山小学","村级小学",2,null,1,1]
["东乡县高山乡高山小学","乡镇小学",2,null,null,1,{"$nulls":6},1]
["东乡县五家乡五家小学","乡镇小学",4,1,1,1,{"$nulls":12},1]
["东乡县五家乡五家沟小学","村级小学",2,1,null,1]
["东乡县五家乡塔户小学","村级小学",1,null,null,1]
["东乡县河滩镇苏孟小学","乡镇小学",2,1,{"$nulls":7},1]
["东乡县河滩镇河滩小学","村级小学",2,null,null,1,{"$nulls":8},1]
["东乡县坪庄学校","乡镇小学",2,{"$nulls":10},1,1]
["东乡县坪庄乡韩则岭小学","村级小学",2,1,1]
["东乡县坪庄乡三社小学","村级小学",1,null,1]
["东乡县坪庄乡罗家小学","村级小学",2,null,1,1]
["东乡县汪集学校","乡镇小学",4,1,1,{"$nulls":9},1,1]
["东乡县汪集乡何家小学","村级小学",2,1,1]
["东乡县汪集乡李家沟教学点","教学点",1,1]
["东乡县凤山小学","乡镇小学",2,1,1]
["东乡县凤山乡池滩小学","村级小学",2,1,1]
["东乡县龙泉乡那楞沟小学","村级小学",2,1,1]
["东乡县龙泉乡周杨小学","村级小学",1,1]
["东乡县龙泉乡苦泉小学","村级小学",1,null,1]
["东乡县龙泉乡马场小学","村级小学",1,null,1]
["东乡县达板镇鹭岛小学","村级小学",5,1,null,1,{"$nulls":5},1,{"$nulls":3},1,null,null,1]
["东乡县达板完全小学","乡镇小学",4,1,1,1,{"$nulls":8},1]
["东乡县达板红柳小学","九年一贯制（小学部）",3,null,1,1,{"$nulls":8},1]
["东乡县达板科妥小学","村级小学",3,1,1,{"$nulls":7},1]
["东乡县达板甘崔小学","村级小学",3,null,1,1,{"$nulls":8},1]
["东乡县达板黑石山小学","村级小学",2,1,1]
["东乡县达板拱北滩小学","村级小学",3,1,{"$nulls":8},1,1]
["东乡县沿岭乡中报希望小学","乡镇小学",2,1,null,1]
["东乡县沿岭乡和平小学","村级小学",2,null,1,1]
["东乡县赵家乡赵家小学","乡镇小学",4,1,null,1,{"$nulls":9},1,null,1]
["东乡县赵家乡飞地小学","村级小学",2,1,1]
["东乡县赵家乡撒拉沟小学","村级小学",2,1,1]
["东乡县赵家乡白家小学","村级小学",2,null,1,1]
["东乡县唐汪回民小学","乡镇小学 ",3,1,1,1]
["东乡县唐汪镇张家小学","村级小学",2,1,null,1]
["东乡县北岭小学","乡镇小学",3,null,1,1,{"$nulls":8},1]
["东乡县北岭乡宋家小学","村级小学",2,1,1]
["东乡县北岭乡巴苏池小学","村级小学",2,null,1,1]
["东乡县果园乡果园小学","乡镇小学 ",3,null,null,1,{"$nulls":7},1,{"$nulls":4},1]
["东乡县果园乡洒勒学校","村级小学",3,1,1,{"$nulls":7},1]
["东乡县果园乡李坪小学","村级小学",3,1,1,1]
["东乡县果园乡王山小学","村级小学",2,1,1]
["东乡县董岭乡张马家小学","村级小学",2,1,1]
["东乡县董岭乡董家岭小学","村级小学",2,1,1]
["东乡县大树乡大树小学","乡镇小学",3,1,1,{"$nulls":13},1]
["东乡县大树乡团结小学","村级小学",2,1,null,1]
["东乡县大树乡杨家小学","村级小学",1,1]
["东乡县考勒乡河西小学","村级小学",1,1]
["东乡县柳树乡柳树小学","乡镇小学",2,1,null,1]
["东乡县柳树乡八洋沟小学","村级小学",2,1,1]
["广河县三甲集中学","完全中学（初中部）",13,1,2,1,1,1,2,2,1,1,{"$nulls":4},1,null,null,"现户籍地或高考时家庭户籍所在地为临夏州各县市",2,"1名语文\n1名政治","普通高校本科及以上毕业生"]
["广河县回民第二中学","初级中学",5,null,null,1,1,1,null,null,1,null,1]
["广河县回民第三中学","初级中学",5,1,null,1,null,null,1,{"$nulls":4},1,1]
["广河县回民第四中学","初级中学",5,1,null,1,null,null,1,1,null,1]
["广河县回民第五中学","初级中学",3,null,null,1,null,1,1]
["广河县回民第六中学","初级中学",3,null,1,1,{"$nulls":4},1]
["广河县回民第七中学","初级中学",5,1,null,1,1,null,1,1]
["广河县三甲集小学","乡镇小学",3,null,1,{"$nulls":7},1,null,1,{"$nulls":7},"普通高校本科及以上或普通高校师范专业专科毕业生"]
["广河县宁定小学","村级小学",5,null,null,1,{"$nulls":5},1,null,1,1,1]
["广河县火红小学","村级小学",1,{"$nulls":8},1]
["广河县李家河小学","村级小学",2,null,1,{"$nulls":8},1]
["广河县十里墩小学","村级小学",2,null,null,1,{"$nulls":9},1]
["广河县牟家窑小学","村级小学",1,null,1]
["广河县康家小学","村级小学",10,2,1,2,{"$nulls":5},1,1,1,1,null,1]
["广河县上集小学","乡镇小学",1,null,null,1]
["广河县水家小学","村级小学",2,null,1,{"$nulls":6},1]
["广河县五户小学","村级小学",2,null,null,1,{"$nulls":7},1]
["广河县陈家小学","村级小学",2,1,{"$nulls":7},1]
["广河县头家小学","村级小学",1,1]
["广河县白庄头小学","村级小学",1,null,1]
["广河县宗家小学","村级小学",2,1,{"$nulls":7},1]
["广河县甘坪小学","村级小学",2,1,1]
["广河县四甲小学","村级小学",2,1,1]
["广河县谢家小学","村级小学",2,1,1]
["广河县徐牟家小学","村级小学",1,null,null,1]
["广河县果园山小学","教学点",1,1]
["广河县朱家坪小学","村级小学",1,null,null,1]
["广河县蔡王家小学","村级小学",1,1]
["广河县高康家小学","村级小学",1,{"$nulls":15},1]
["广河县何家湾村学","教学点",1,1]
["广河县陈家湾小学","村级小学",2,1,{"$nulls":7},1]
["广河县何家湾教学点","村级小学",2,1,{"$nulls":7},1]
["广河县田家小学","村级小学",1,null,1]
["广河县黄家沟小学","村级小学",1,1]
["广河县兰家小学","村级小学",1,null,1]
["广河县阿力麻土大庄小学","村级小学",1,null,1]
["广河县贾家希望小学","村级小学",1,null,null,1]
["广河县尤家小学","村级小学",1,1]
["广河县巴家小学","村级小学",1,null,null,1]
["广河县兰家村教学点","教学点",1,1]
["广河县金家沟教学点","教学点",1,{"$nulls":12},1]
["广河县山庄教学点","教学点",1,1]
["广河县寺沟教学点","教学点",1,null,1]
["广河县官坊小学","乡镇小学",1,null,null,1]
["广河县阳洼庄小学","村级小学",1,1]
["广河县河滩村学","教学点",1,{"$nulls":8},1]
["广河县槐沟小学","村级小学",1,null,1]
["广河县山庄小学","教学点",1,1]
["广河县董家山教学点","教学点",1,{"$nulls":15},1]
["广河县买家巷小学","乡镇小学",1,1]
["广河县蔡家窑小学","教学点",1,1]
["广河县张家山教学点","教学点",1,1]
["广河县曹家坡村学","教学点",1,{"$nulls":15},1]
["广河县曾家小学","村级小学",1,null,null,1]
["广河县曹家坡小学","村级小学",1,1]
["广河县排子坪小学","乡镇小学",1,null,1]
["广河县新民滩小学","村级小学",2,1,{"$nulls":14},1]
["广河县上马家小学","村级小学",1,1]
["广河县黄家湾小学","村级小学",1,null,1]
["广河县邓家湾小学","村级小学",1,null,1]
["广河县魏家咀小学","村级小学",2,1,1]
["广河县张家咀小学","村级小学",2,{"$nulls":8},1,null,1]
["广河县周家山小学","村级小学",2,1,1]
["广河县黄家小学","教学点",1,1]
["广河县马家湾小学","村级小学",1,1]
["广河县齐家镇黄家坪教学点","教学点",1,null,1]
["广河县红庄小学","村级小学",2,null,1,{"$nulls":7},1]
["广河县申家滩村学","教学点",1,1]
["广河县王家沟小学","教学点",1,1]
["广河县水泉小学","乡镇小学",3,1,{"$nulls":7},1,{"$nulls":3},1]
["广河县克那小学","村级小学",2,null,null,1,{"$nulls":8},1]
["广河县牛康家小学","村级小学",2,1,1]
["广河县草滩小学","村级小学",2,1,{"$nulls":12},1]
["广河县排套小学","村级小学",2,1,null,1]
["广河县老庄小学","村级小学",2,null,1,{"$nulls":9},1]
["广河县闫子小学","村级小学",2,null,1,1]
["广河县新庄小学","村级小学",2,null,1,1]
["广河县马家小学","教学点",1,null,1]
["广河县草滩村教学点","教学点",2,null,1,{"$nulls":13},1]
["广河县张家小学","教学点",2,null,null,1,{"$nulls":8},1]
["广河县水泉乡克那教学点","教学点",1,null,1]
["广河县康坪小学","教学点",1,1]
["广河县庄禾集小学","乡镇小学",3,null,null,1,{"$nulls":7},1,null,1]
["广河县对康小学","村级小学",1,null,1]
["广河县雅幽小学","村级小学",2,null,null,1,{"$nulls":5},1]
["广河县中寨希望小学","村级小学",2,null,1,{"$nulls":12},1]
["广河县庄禾集镇大庄小学","村级小学",2,null,1,{"$nulls":9},1]
["广河县西坪小学","村级小学",2,null,null,1,{"$nulls":6},1]
["广河县马浪小学","村级小学",1,null,1]
["广河县新民小学","村级小学",2,null,null,1,{"$nulls":6},1]
["广河县宋家山小学","村级小学",1,null,1]
["广河县牙和小学","村级小学",2,null,1,{"$nulls":6},1]
["广河县司家坪小学","教学点",2,null,1,{"$nulls":6},1]
["和政三中","初级中学",3,{"$nulls":3},2,1,{"$nulls":11},"现户籍地或高考时家庭户籍所在地为临夏州各县市",2,"物理","普通高校本科及以上毕业生"]
["和政县三十里铺中学","初级中学",3,{"$nulls":4},1,null,1,1]
["和政县梁家寺学区梁家寺学校（初中部）","初级中学",3,{"$nulls":3},1,null,1,null,1]
["和政县新集学校","乡镇小学",2,{"$nulls":10},1,{"$nulls":4},1]
["和政县陈家集学区王录山小学","村级小学",2,{"$nulls":8},1,null,null,1]
["和政县陈家集学区孟家小学","村级小学",2,null,1,{"$nulls":12},1]
["和政县陈家集学区赵家山小学","教学点",1,1]
["和政县陈家集学区陈家沟小学","村级小学",1,null,1]
["和政县陈家集学区上王家小学","村级小学",2,1,{"$nulls":11},1]
["和政县罗家集学区三岔沟小学","村级小学",2,null,null,1,{"$nulls":9},1]
["和政县罗家集学区联合小学","教学点",1,{"$nulls":11},1]
["和政县罗家集学区大坪小学","村级小学",2,1,{"$nulls":7},1]
["和政县罗家集学区大滩小学","村级小学",1,1]
["和政县罗家集学区李家山小学","教学点",2,null,1,{"$nulls":8},1]
["和政县新营学区大庄小学","村级小学",2,1,null,1]
["和政县新营学区金穗希望小学","教学点",1,{"$nulls":9},1]
["和政县新营学区元菜坪小学","村级小学",1,1]
["和政县新营学区大沟小学","村级小学",1,{"$nulls":14},1]
["和政县梁家寺学区赵家沟小学","村级小学",1,{"$nulls":10},1]
["和政县梁家寺学区甘沟小学","村级小学",1,null,null,1]
["和政县梁家寺学区杨仲家小学","村级小学",1,null,null,1]
["和政县梁家寺学区大河家小学","村级小学",1,null,1]
["和政县梁家寺学区友好小学","村级小学",2,1,null,1]
["和政县梁家寺学区南湾小学","教学点",1,1]
["和政县梁家寺学区杜家山小学","教学点",1,1]
["和政县三十里铺学区闵家小学","村级小学",1,null,null,1]
["和政县三十里铺学区阴山小学","村级小学",2,null,null,1,{"$nulls":7},1]
["和政县三十里铺学区希望小学","教学点",1,null,1]
["和政县三十里铺学区张家沟小学","村级小学",1,null,1]
["和政县三十里铺学区包侯家小学","村级小学",1,null,1]
["和政县马家堡学区马家堡中心小学","乡镇小学",2,{"$nulls":13},1,null,1]
["和政县马家堡学区脖项小学","村级小学",1,null,1]
["和政县马家堡学区大庄小学","村级小学",1,null,null,1]
["和政县马家堡学区台子小学","村级小学",1,null,null,1]
["和政县马家堡学区团咀小学","教学点",1,{"$nulls":9},1]
["和政县马家堡学区张湾小学","教学点",1,null,1]
["和政县马家堡学区小河小学","村级小学",1,{"$nulls":10},1]
["积石山县大河家中学","完全中学（初中部）",12,3,2,2,2,null,null,2,null,null,1,{"$nulls":6},"现户籍地或高考时家庭户籍所在地为临夏州各县市",2,"语文","普通高校本科及以上毕业生"]
["积石山县居集初级中学","初级中学",1,null,null,1]
["积石山县癿藏中学","初级中学",8,1,1,1,null,1,1,1,1,null,1]
["积石山县银川初级中学","初级中学",1,{"$nulls":3},1]
["积石山县刘集中学","初级中学",1,null,1]
["积石山县城东小学","乡镇小学",3,1,null,1,{"$nulls":8},1,{"$nulls":7},"普通高校本科及以上或普通高校师范专业专科毕业生"]
["积石山县居集学区深沟小学","村级小学",1,null,1]
["积石山县胡林家学区山庄小学","教学点",1,{"$nulls":15},1]
["积石山县铺川学区下庄小学","村级小学",1,{"$nulls":8},1]
["积石山县徐扈家学区尚家教学点","教学点",1,{"$nulls":15},1]
["积石山县银川学区鲁家湾教学点","教学点",1,{"$nulls":11},1]
["积石山县银川学区曹达浪教学点","教学点",1,{"$nulls":15},1]
["积石山县寨子沟学区寨子沟小学","村级小学",1,null,1]
["积石山县中咀岭学区大山小学","村级小学",1,{"$nulls":10},1]
["积石山县大河家学区大河家中心小学","乡镇小学",1,null,1]
["积石山县刘集学区刘集小学","乡镇小学",1,1]
["积石山县石塬学区肖红坪小学","乡镇小学",1,{"$nulls":10},1]
["积石山县柳沟学区尕集春雷小学","乡镇小学",1,null,null,1]
["积石山县关家川学区关家川中心小学","乡镇小学",1,{"$nulls":8},1]
["积石山县胡林家学区左家小学","乡镇小学",1,null,1]
["积石山县寨子沟学区尕马家小学","乡镇小学",1,1]
["积石山县居集学区居集小学","乡镇小学",1,null,null,1]
["积石山县郭干学区郭干小学","乡镇小学",1,null,1]
["积石山县徐扈家学区牟家小学","乡镇小学",1,{"$nulls":14},1]
["积石山县中咀岭学区马家咀小学","乡镇小学",1,null,null,1]
["积石山县癿藏学区癿藏小学","乡镇小学",1,{"$nulls":11},1]
["积石山县小关学区小关小学","乡镇小学",1,{"$nulls":14},1]
["积石山县铺川学区铺川小学","乡镇小学",1,null,null,1]
["积石山县银川学区银川小学","乡镇小学",1,1]
["永靖县回民中学","初级中学",8,1,null,1,2,1,1,1,{"$nulls":6},1,null,null,"现户籍地或高考时家庭户籍所在地为临夏州各县市",1,"物理","普通高校本科及以上毕业生"]
["永靖县川城学校","九年一贯制（初中部）",4,null,1,null,1,{"$nulls":3},1,1]
["永靖县新寺乡段岭小学","乡镇小学",1,1,{"$nulls":18},"普通高校本科及以上或普通高校师范专业专科毕业生"]
["永靖县后坪小学","村级小学",1,null,1]
["永靖县新寺乡王年沟小学","村级小学",1,{"$nulls":10},1]
["永靖县川城镇汪家小学","教学点",1,{"$nulls":12},1]
["永靖县川城镇冯家山小学","教学点",1,null,1]
["永靖县小岭乡小岭中心小学","乡镇小学",1,1]
["永靖县小岭乡大路小学","村级小学",1,null,null,1]
["永靖县小岭乡旭坪小学","村级小学",1,null,null,1]
["永靖县小岭乡晨光小学","村级小学",1,{"$nulls":11},1]
["永靖县红泉镇董山小学","村级小学",1,null,1]
["永靖县红泉镇红泉中心小学","乡镇小学",1,1]
["永靖县王台镇王台中心小学","乡镇小学",1,null,null,1]
["永靖县王台镇湾子小学","村级小学",1,null,1]
["永靖县西河镇白川小学","村级小学",1,{"$nulls":9},1]
["永靖县西河镇红城小学","村级小学",1,1]
["永靖县西河镇瓦房小学","教学点",1,null,1]
["永靖县西河镇二房小学","教学点",1,null,null,1]
["康乐县康丰民族初级中学","初级中学",{"$f":"SUM(D323:T323)","v":3},null,1,1,{"$nulls":7},1,{"$nulls":5},"现户籍地或高考时家庭户籍所在地为临夏州各县市",null,null,"普通高校本科及以上毕业生"]
["康乐县虎关初级中学","初级中学",2,1,null,1]
["康乐县流川中学","初级中学",6,null,1,1,1,null,1,{"$nulls":3},1,1,{"$nulls":6},1,"数学"]
["康乐县白王初级中学","初级中学",5,1,1,1,{"$nulls":4},1,null,null,1,{"$nulls":6},1,"数学"]
["康乐县八松初级中学","初级中学",5,1,1,1,{"$nulls":4},1,null,1]
["康乐县第三中学","初级中学",2,null,null,1,{"$nulls":6},1]
["康乐县鸣鹿初级中学","初级中学",6,1,1,1,{"$nulls":4},1,null,1,null,1]
["康乐县上湾民族中学","初级中学",7,1,null,2,null,1,1,{"$nulls":3},1,null,1,{"$nulls":5},1,"化学"]
["康乐县胭脂初级中学","初级中学",7,1,null,1,1,1,null,1,1,null,null,1,{"$nulls":6},1,"英语"]
["康乐县草滩民族初中","初级中学",5,null,1,1,null,1,null,1,{"$nulls":3},1]
["康乐县五户学校","九年一贯制（初中部）",3,1,1,1]
["康乐县第二中学","初级中学",2,null,1,1]
["康乐县莲麓初级中学","初级中学",3,1,1,null,1]
["康乐县石王小学","村级小学",2,{"$nulls":8},1,{"$nulls":6},1,{"$nulls":3},"普通高校本科及以上或普通高校师范专业专科毕业生"]
["康乐县松树沟小学","村级小学",2,1,{"$nulls":9},1]
["康乐县刘家庙小学","村级小学",1,{"$nulls":8},1]
["康乐县高林湾小学","村级小学",1,1]
["康乐县小格沟教学点","村级小学",1,1]
["康乐县高丰小学","村级小学",1,null,1]
["康乐县马家咀小学","村级小学",1,1]
["康乐县田家沟小学","村级小学",1,null,1]
["康乐县头岔小学","村级小学",1,1]
["康乐县段家坪小学","村级小学",1,null,1]
["康乐县贾家沟小学","村级小学",1,null,1]
["康乐县关北小学","村级小学",1,1]
["康乐县当川铺小学","乡镇小学",2,1,{"$nulls":7},1]
["康乐县窦家小学","村级小学",1,null,1]
["康乐县范家小学","村级小学",2,{"$nulls":10},1,{"$nulls":4},1]
["康乐县二甲小学","村级小学",1,1]
["康乐县白王小学","乡镇小学",3,null,null,1,{"$nulls":5},1,null,1]
["康乐县老树沟小学","村级小学",1,1]
["康乐县孙家掌小学","村级小学",1,null,1]
["康乐县新庄小学","村级小学",1,null,1]
["康乐县熊家寨小学","村级小学",1,1]
["康乐县苏丰小学","村级小学",1,1]
["康乐县冯马家小学","村级小学",1,1]
["康乐县山庄小学","村级小学",1,1]
["康乐县八松学校","乡镇小学",1,null,1]
["康乐县塔庄小学","村级小学",1,1]
["康乐县龚庄小学","村级小学",1,1]
["康乐县那尼头小学","教学点",1,null,null,1]
["康乐县纳沟小学","教学点",1,1]
["康乐县苏集小学","乡镇小学",3,null,1,1,{"$nulls":7},1]
["康乐县丰台小学","村级小学",1,null,1]
["康乐县半坡小学","村级小学",1,1]
["康乐县徐家滩小学","村级小学",1,null,1]
["康乐县洼滩小学","乡镇小学",2,1,{"$nulls":7},1]
["康乐县郭家庄小学","村级小学",1,null,1]
["康乐县尕路小学","村级小学",1,1]
["康乐县鸣关小学","村级小学",1,null,1]
["康乐县大东沟小学","村级小学",1,1]
["康乐县八才沟小学","村级小学",1,1]
["康乐县八丹学校","乡镇小学",2,null,1,1]
["康乐县叶素小学","教学点",1,1]
["康乐县芦子沟小学","村级小学",1,1]
["康乐县李子堡小学","教学点",1,null,1]
["康乐县上湾小学","乡镇小学",2,null,1,{"$nulls":10},1]
["康乐县三条沟小学","村级小学",1,1]
["康乐县小格沟教学点","教学点",1,null,1]
["康乐县沙塄小学","村级小学",2,1,{"$nulls":9},1]
["康乐县后沟教学点","教学点",1,null,1]
["康乐县九子沟教学点","教学点",1,1]
["康乐县麻池小学","村级小学",1,null,null,1]
["康乐县乔家小学","村级小学",1,1]
["康乐县马巴小学","村级小学",{"$f":"SUM(D387:T387)","v":1},null,1]
["康乐县东沟小学","村级小学",1,1]
["康乐县瓜梁小学","村级小学",1,1]
["康乐县马集小学","乡镇小学",2,null,null,1,{"$nulls":5},1]
["康乐县庄头小学","村级小学",2,1,1]
["康乐县甘沟湾小学","教学点",1,1]
["康乐县八龙小学","村级小学",1,null,1]
["康乐县晏家小学","村级小学",1,1]
["康乐县开那小学","教学点",1,null,1]
["康乐县西坡小学","村级小学",1,1]
["康乐县塄干小学","村级小学",1,null,1]
["康乐县草滩小学","乡镇小学",2,null,null,1,{"$nulls":9},1]
["康乐县车场沟小学","教学点",1,1]
["康乐县巨那小学","村级小学",1,1]
["康乐县新集小学","村级小学",1,null,1]
["康乐县普巴小学","村级小学",2,null,1,1]
["康乐县打门小学","村级小学",1,1]
["康乐县蔡家小学","村级小学",1,1]
["康乐县丁滩小学","村级小学",1,null,1]
["康乐县景古小学","乡镇小学",3,null,1,1,{"$nulls":5},1]
["康乐县向阳咀小学","教学点",1,1]
["康乐县温家河小学","教学点",1,null,null,1]
["康乐县线家滩小学","村级小学",1,null,1]
["康乐县莲麓小学","村级小学",1,null,1]
["康乐县下扎小学","村级小学",1,1]
["康乐县蛇路小学","村级小学",1,1]
["康乐县线家湾小学","教学点",1,null,1]
["康乐县火烧洼教学点","教学点",1,null,1]